bitfinex/quotes_SOLUSD_20241220
["timestamp","ask_amount","ask_price","bid_price","bid_amount"]
[1734684378710,41.80834459,182.49,182.43,20.0]
[1734684378913,1.02763524,182.48,182.43,43.776884]
[1734684379135,1.02760275,182.5,182.43,43.776884]
[1734684379314,41.80834459,182.53,182.46,23.776884]
[1734684379515,41.80834459,182.49,182.4,41.80834459]
[1734684379720,41.80834459,182.45,182.41,20.0]
[1734684379924,41.80834459,182.47,182.41,20.0]
[1734684380147,1.027813,182.46,182.41,20.0]
[1734684380315,41.80834459,182.43,182.35,41.80834459]
[1734684380509,41.80834459,182.45,182.37,41.80834459]
[1734684380837,1.02785938,182.44,182.37,41.80834459]
[1734684381149,41.80834459,182.49,182.41,41.80834459]
[1734684381314,3.33304893,182.58,182.37,41.80834459]
[1734684381315,41.80834459,182.47,182.37,41.80834459]
[1734684381515,1.02797202,182.46,182.39,41.80834459]
[1734684381847,1.02779139,182.51,182.47,23.776884]
[1734684382140,42.83613598,182.51,182.46,20.0]
[1734684382349,1.02779139,182.51,182.47,23.776884]
[1734684382643,41.80834459,182.55,182.5,20.0]
[1734684382846,41.80834459,182.57,182.51,23.776884]
[1734684383016,1.02711885,182.56,182.51,23.776884]
[1734684383214,1.02711885,182.56,182.5,20.0]
[1734684383555,41.80834459,182.51,182.34,54.31284459]
[1734684383731,41.80834459,182.44,182.36,41.80834459]
[1734684383914,1.02803745,182.43,182.34,12.5045]
[1734684384113,1.02803745,182.43,182.36,41.80834459]
[1734684384525,41.80834459,182.42,182.34,54.31284459]
[1734684384929,41.80834459,182.46,182.38,41.80834459]
[1734684385230,1.0277389,182.45,182.38,41.80834459]
[1734684385532,1.0277389,182.45,182.34,54.31284459]
[1734684385533,1.0277389,182.45,182.4,41.80834459]
[1734684385925,1.0277389,182.45,182.3,3.25502833]
[1734684385926,41.80834459,182.44,182.3,3.25502833]
[1734684386121,41.80834459,182.38,182.3,41.80834459]
[1734684386341,41.80834459,182.36,182.28,41.80834459]
[1734684386639,1.02844164,182.37,182.25,12.5045]
[1734684386640,42.83684665,182.42,182.34,41.80834459]
[1734684386942,1.02850206,182.42,182.36,41.80834459]
[1734684387469,1.02792698,182.41,182.34,41.80834459]
[1734684387822,41.80834459,182.38,182.3,41.80834459]
[1734684388023,1.02846041,182.42,182.37,41.80834459]
[1734684388322,1.02793053,182.45,182.37,41.80834459]
[1734684388661,41.80834459,182.4,182.32,41.80834459]
[1734684388833,41.80834459,182.38,182.3,41.80834459]
[1734684389142,1.02837587,182.37,182.3,41.80834459]
[1734684389442,1.02837587,182.37,182.32,41.80834459]
[1734684389443,1.02823617,182.37,182.32,41.80834459]
[1734684390056,1.02823617,182.37,182.25,54.31284459]
[1734684390241,41.80834459,182.31,182.18,17.86925618]
[1734684390554,41.80834459,182.23,182.15,41.80834459]
[1734684390724,1.02930111,182.22,182.13,41.80834459]
[1734684390920,41.80834459,182.21,182.11,41.80834459]
[1734684391121,41.80834459,182.19,182.11,41.80834459]
[1734684391326,41.80834459,182.15,182.07,41.80834459]
[1734684391635,1.0297214,182.14,182.07,41.80834459]
[1734684391831,41.80834459,182.13,182.03,41.80834459]
[1734684392042,1.02992528,182.12,182.03,41.80834459]
[1734684392354,41.80834459,182.09,182.01,41.80834459]
[1734684392649,41.80834459,182.09,181.94,16.07857561]
[1734684392650,41.80834459,182.07,181.97,41.80834459]
[1734684392946,41.80834459,182.07,181.93,41.80834459]
[1734684392947,41.80834459,182.01,181.93,41.80834459]
[1734684393264,41.80834459,182.07,181.75,8.1754]
[1734684393265,41.80834459,181.95,181.75,8.1754]
[1734684393566,41.80834459,181.88,181.87,21.972157]
[1734684393734,1.03102817,181.94,181.87,21.972157]
[1734684393922,41.80834459,181.89,181.79,41.80834459]
[1734684394122,1.03125722,181.88,181.79,41.80834459]
[1734684395025,1.03125722,181.88,181.81,41.80834459]
[1734684395333,41.80834459,181.94,181.85,41.80834459]
[1734684395646,41.80834459,181.92,181.83,41.80834459]
[1734684395851,1.03108652,181.91,181.83,41.80834459]
[1734684396425,41.80834459,181.88,181.79,41.80834459]
[1734684396625,1.03127742,181.87,181.79,41.80834459]
[1734684397148,1.03125704,181.87,181.81,41.80834459]
[1734684397554,1.03125704,181.87,181.79,41.80834459]
[1734684397726,41.80834459,181.84,181.75,41.80834459]
[1734684398041,41.80834459,181.76,181.67,41.80834459]
[1734684398244,41.80834459,181.72,181.63,41.80834459]
[1734684398430,1.03218777,181.71,181.65,41.80834459]
[1734684398638,1.03212922,181.79,181.59,0.82570338]
[1734684398850,41.80834459,181.89,181.59,0.82570338]
[1734684398851,41.80834459,181.84,181.75,41.80834459]
[1734684399050,1.03158616,181.83,181.75,41.80834459]
[1734684399250,1.03158616,181.83,181.77,41.80834459]
[1734684399428,1.03158616,181.83,181.64,0.82519792]
[1734684399758,41.80834459,181.82,181.73,41.80834459]
[1734684399923,1.03177162,181.81,181.73,41.80834459]
[1734684400124,1.03177162,181.81,181.64,0.82519792]
[1734684400327,42.83993952,181.86,181.77,41.80834459]
[1734684400526,41.80834459,181.79,181.7,41.80834459]
[1734684400752,1.0318177,181.78,181.7,41.80834459]
[1734684401252,41.80834459,181.73,181.64,41.80834459]
[1734684401454,41.80834459,181.69,181.6,63.81301259]
[1734684401627,1.03239157,181.68,181.62,41.80834459]
[1734684401833,1.03227897,181.7,181.66,41.80834459]
[1734684402045,1.03209365,181.74,181.66,41.80834459]
[1734684402550,1.03209365,181.74,181.68,41.80834459]
[1734684402727,1.03197182,181.76,181.62,42.63392205]
[1734684402930,1.03197182,181.76,181.72,41.80834459]
[1734684403251,1.03197182,181.76,181.7,41.80834459]
[1734684403658,1.03197182,181.76,181.68,41.80834459]
[1734684403842,1.03197182,181.76,181.7,41.80834459]
[1734684404041,22.006305,181.83,181.72,41.80834459]
[1734684404042,1.03187875,181.78,181.72,41.80834459]
[1734684404248,1.03167778,181.8,181.72,41.80834459]
[1734684404436,1.03167778,181.8,181.74,41.80834459]
[1734684404641,1.03149774,181.79,181.72,41.80834459]
[1734684404845,1.03149774,181.79,181.68,41.80834459]
[1734684404846,41.80834459,181.75,181.68,41.80834459]
[1734684405047,1.03209995,181.74,181.66,41.80834459]
[1734684405453,1.03209995,181.74,181.68,41.80834459]
[1734684406038,1.032158,181.73,181.7,41.80834459]
[1734684406237,1.03189832,181.79,181.7,41.80834459]
[1734684406855,1.03189832,181.79,181.72,41.80834459]
[1734684407064,1.03189832,181.79,181.7,41.80834459]
[1734684407559,1.03189832,181.79,181.74,41.80834459]
[1734684407756,1.03181038,181.78,181.74,41.80834459]
[1734684407941,1.03171605,181.81,181.76,41.80834459]
[1734684408263,1.03150203,181.85,181.79,41.80834459]
[1734684408646,1.03150203,181.85,181.81,41.80834459]
[1734684408847,41.80834459,181.88,181.79,41.80834459]
[1734684409041,41.80834459,181.86,181.79,41.80834459]
[1734684409243,1.0314433,181.85,181.77,41.80834459]
[1734684409460,41.80834459,181.84,181.75,41.80834459]
[1734684409761,1.0316303,181.83,181.75,41.80834459]
[1734684410055,1.0316303,181.83,181.77,41.80834459]
[1734684410229,1.03142072,181.85,181.79,41.80834459]
[1734684410847,1.03142072,181.85,181.72,37.534284]
[1734684410848,1.03137208,181.87,181.81,41.80834459]
[1734684411557,1.03137208,181.87,181.83,41.80834459]
[1734684411736,1.03094215,181.91,181.85,41.80834459]
[1734684412055,41.80834459,181.86,181.72,23.776884]
[1734684412256,1.03154831,181.85,181.76,41.80834459]
[1734684412463,1.03154831,181.85,181.79,41.80834459]
[1734684412641,1.03127272,181.87,181.79,41.80834459]
[1734684412836,1.03127272,181.87,181.81,41.80834459]
[1734684413040,41.80834459,181.94,181.85,41.80834459]
[1734684413346,1.03090707,181.93,181.87,41.80834459]
[1734684413748,1.03090707,181.93,181.85,41.80834459]
[1734684414063,1.03094623,181.99,181.91,41.80834459]
[1734684414265,1.03094623,181.99,181.93,41.80834459]
[1734684414439,1.03042562,182.01,181.95,41.80834459]
[1734684414938,1.03041399,182.0,181.85,20.0]
[1734684415138,41.80834459,181.93,181.85,41.80834459]
[1734684415350,41.80834459,181.89,181.81,41.80834459]
[1734684415569,41.80834459,181.87,181.77,41.80834459]
[1734684415737,1.0314331,181.86,181.77,41.80834459]
[1734684416336,41.80834459,181.83,181.74,41.80834459]
[1734684416538,41.80834459,181.81,181.72,41.80834459]
[1734684416764,1.03149532,181.8,181.72,41.80834459]
[1734684417762,41.80834459,181.79,181.7,41.80834459]
[1734684417962,1.03163673,181.78,181.7,41.80834459]
[1734684418464,41.80834459,181.84,181.76,41.80834459]
[1734684418648,1.03144936,181.83,181.76,41.80834459]
[1734684419043,41.80834459,181.9,181.8,41.80834459]
[1734684419258,1.03104882,181.93,181.85,23.776884]
[1734684419462,42.83938268,181.92,181.83,41.80834459]
[1734684419646,1.03103809,181.92,181.85,41.80834459]
[1734684419840,1.03103809,181.92,181.86,23.776884]
[1734684420065,1.03079821,181.93,181.87,41.80834459]
[1734684420379,21.986709,182.01,181.88,23.776884]
[1734684420380,41.80834459,181.96,181.88,23.776884]
[1734684420543,1.0307486,181.95,181.87,41.80834459]
[1734684420944,1.0307486,181.95,181.88,23.776884]
[1734684421163,1.03064517,181.94,181.87,41.80834459]
[1734684421367,41.80834459,181.98,181.9,23.776884]
[1734684421552,41.80834459,182.0,181.92,23.776884]
[1734684421873,41.80834459,181.94,181.83,41.80834459]
[1734684422172,41.80834459,181.92,181.83,41.80834459]
[1734684422370,41.80834459,181.96,181.87,41.80834459]
[1734684422542,41.80834459,182.02,181.93,41.80834459]
[1734684422747,41.80834459,182.04,181.95,41.80834459]
[1734684422959,1.03019569,182.03,181.95,41.80834459]
[1734684423352,41.80834459,181.96,181.87,41.80834459]
[1734684423559,41.80834459,181.9,181.86,21.976497]
[1734684423767,41.80834459,181.88,181.79,41.80834459]
[1734684423969,1.03116498,181.87,181.79,41.80834459]
[1734684424171,41.80834459,181.88,181.79,41.80834459]
[1734684424370,1.03105791,181.87,181.79,41.80834459]
[1734684424752,1.03105791,181.87,181.81,41.80834459]
[1734684424950,41.80834459,181.98,181.83,41.80834459]
[1734684424951,41.80834459,181.92,181.83,41.80834459]
[1734684425160,41.80834459,181.9,181.79,41.80834459]
[1734684425365,1.03103054,181.89,181.81,41.80834459]
[1734684425570,41.80834459,181.92,181.81,41.80834459]
[1734684425878,41.80834459,181.9,181.79,41.80834459]
[1734684426167,41.80834459,181.88,181.79,41.80834459]
[1734684426375,41.80834459,181.92,181.83,41.80834459]
[1734684426580,41.80834459,181.92,181.84,23.776884]
[1734684426783,41.80834459,181.88,181.76,13.1512]
[1734684427074,1.03134676,181.87,181.78,41.80834459]
[1734684427280,41.80834459,181.86,181.76,54.95954459]
[1734684427481,41.80834459,181.84,181.76,41.80834459]
[1734684427768,1.03141927,181.83,181.76,41.80834459]
[1734684427971,41.80834459,181.86,181.76,41.80834459]
[1734684428177,41.80834459,181.9,181.8,41.80834459]
[1734684428380,1.03100387,181.89,181.8,41.80834459]
[1734684428858,41.80834459,181.92,181.83,23.776884]
[1734684429188,41.80834459,181.84,181.76,41.80834459]
[1734684429352,41.80834459,181.89,181.74,41.80834459]
[1734684429353,41.80834459,181.82,181.74,41.80834459]
[1734684429554,1.03147276,181.81,181.74,41.80834459]
[1734684430180,41.80834459,181.78,181.68,41.80834459]
[1734684430382,41.80834459,181.76,181.66,49.33194459]
[1734684430585,41.80834459,181.78,181.7,41.80834459]
[1734684430762,1.03167265,181.77,181.7,41.80834459]
[1734684430963,41.80834459,181.76,181.68,41.80834459]
[1734684431167,41.80834459,181.74,181.64,41.80834459]
[1734684431356,1.03199659,181.73,181.64,41.80834459]
[1734684431556,41.80834459,181.72,181.64,41.80834459]
[1734684431756,1.03219261,181.71,181.64,41.80834459]
[1734684431962,1.03219261,181.71,181.62,41.80834459]
[1734684432184,1.03219261,181.71,181.6,12.0982]
[1734684432185,41.80834459,181.68,181.6,41.80834459]
[1734684432385,1.03219261,181.71,181.52,25.8703]
[1734684432386,41.80834459,181.64,181.52,12.0982]
[1734684432596,41.80834459,181.62,181.54,41.80834459]
[1734684432752,1.03263026,181.61,181.54,41.80834459]
[1734684433080,1.03263026,181.61,181.52,41.80834459]
[1734684433288,41.80834459,181.6,181.47,8.1459]
[1734684433493,41.80834459,181.62,181.54,41.80834459]
[1734684433696,1.03256518,181.61,181.54,41.80834459]
[1734684433862,1.03273207,181.63,181.58,41.80834459]
[1734684434193,1.03246381,181.65,181.58,41.80834459]
[1734684434360,42.8408084,181.65,181.56,41.80834459]
[1734684434562,1.03246381,181.65,181.6,41.80834459]
[1734684434758,41.80834459,181.65,181.47,8.1459]
[1734684435055,1.03265825,181.64,181.54,41.80834459]
[1734684435262,41.80834459,181.61,181.52,41.80834459]
[1734684435460,41.80834459,181.61,181.43,12.0982]
[1734684435461,41.80834459,181.54,181.43,41.80834459]
[1734684435685,1.03324299,181.53,181.45,41.80834459]
[1734684435999,42.84146512,181.6,181.51,41.80834459]
[1734684436286,41.80834459,181.56,181.36,13.7845]
[1734684436488,1.03303051,181.55,181.37,0.82642441]
[1734684436689,41.80834459,181.54,181.45,41.80834459]
[1734684436891,8.2603,181.6,181.35,41.80834459]
[1734684436892,41.80834459,181.52,181.43,41.80834459]
[1734684437099,41.80834459,181.5,181.41,41.80834459]
[1734684437277,41.80834459,181.48,181.39,41.80834459]
[1734684437472,41.80834459,181.46,181.37,41.80834459]
[1734684437671,41.80834459,181.44,181.35,41.80834459]
[1734684437885,1.03350598,181.43,181.3,2.1132407]
[1734684438074,41.80834459,181.39,181.3,41.80834459]
[1734684438277,41.80834459,181.44,181.26,41.80834459]
[1734684438278,41.80834459,181.35,181.26,41.80834459]
[1734684438491,41.80834459,181.3,181.15,12.2256]
[1734684438789,1.03350598,181.29,181.22,41.80834459]
[1734684439103,1.03350598,181.29,181.24,41.80834459]
[1734684439266,1.03350598,181.31,181.26,41.80834459]
[1734684439458,1.03350598,181.35,181.28,41.80834459]
[1734684439662,1.03350598,181.35,180.96,42.6049]
[1734684439663,20.0,181.27,180.96,42.6049]
[1734684439880,41.80834459,181.19,181.1,41.80834459]
[1734684440194,41.80834459,181.15,181.05,41.80834459]
[1734684440399,1.03350598,181.14,181.0,3.34421155]
[1734684440687,1.03350598,181.14,181.13,41.80834459]
[1734684440914,1.03350598,181.21,181.13,41.80834459]
[1734684441111,1.03350598,181.23,181.16,41.80834459]
[1734684441282,41.80834459,181.18,181.05,0.82791499]
[1734684441605,41.80834459,181.14,181.05,41.80834459]
[1734684441781,1.03350598,181.13,181.09,41.80834459]
[1734684441976,1.03350598,181.17,181.09,41.80834459]
[1734684442215,1.03350598,181.17,181.14,41.80834459]
[1734684442412,1.03350598,181.22,181.16,41.80834459]
[1734684442577,1.03350598,181.24,181.16,41.80834459]
[1734684442777,1.03350598,181.24,181.2,41.80834459]
[1734684443085,1.03350598,181.34,181.26,20.0]
[1734684443303,8.2662,181.46,181.32,23.776884]
[1734684443304,41.80834459,181.41,181.32,23.776884]
[1734684443503,41.80834459,181.37,181.27,41.80834459]
[1734684443719,41.80834459,181.35,181.25,41.80834459]
[1734684444018,1.03350598,181.34,181.28,23.776884]
[1734684444317,1.03350598,181.34,181.29,41.80834459]
[1734684444478,1.03350598,181.34,181.2,20.0]
[1734684444479,1.03350598,181.34,181.27,41.80834459]
[1734684444682,1.03350598,181.34,181.18,0.82750657]
[1734684444683,1.03350598,181.36,181.34,20.0]
[1734684445017,1.03350598,181.42,181.35,41.80834459]
[1734684445392,1.03350598,181.42,181.37,41.80834459]
[1734684445607,1.03350598,181.42,181.35,41.80834459]
[1734684445903,1.03350598,181.44,181.38,23.776884]
[1734684446080,1.03350598,181.44,181.37,41.80834459]
[1734684446297,1.03350598,181.44,181.4,23.776884]
[1734684446502,1.03350598,181.44,181.35,41.80834459]
[1734684446503,1.03350598,181.48,181.43,23.776884]
[1734684446707,41.80834459,181.54,181.43,23.776884]
[1734684446882,1.03328081,181.53,181.45,41.80834459]
[1734684447081,1.03328081,181.53,181.47,41.80834459]
[1734684447298,1.03324319,181.55,181.5,41.80834459]
[1734684447512,1.03289197,181.58,181.51,23.776884]
[1734684447684,41.80834459,181.63,181.54,41.80834459]
[1734684447883,41.80834459,181.57,181.51,23.776884]
[1734684448192,42.84142751,181.56,181.51,23.776884]
[1734684448394,41.80834459,181.54,181.51,23.776884]
[1734684448614,41.80834459,181.52,181.4,13.7815]
[1734684448813,1.03343162,181.51,181.42,41.80834459]
[1734684449114,1.03343162,181.51,181.48,41.80834459]
[1734684449419,1.033222,181.65,181.5,41.80834459]
[1734684449581,1.033222,181.65,181.58,41.80834459]
[1734684449782,274.31810136,181.9,181.49,0.8265776]
[1734684449783,1.03247083,181.76,181.52,57.80376628]
[1734684450018,41.80834459,181.8,181.7,41.80834459]
[1734684450313,12.8372,181.87,181.74,23.776884]
[1734684450314,1.03175673,181.79,181.74,23.776884]
[1734684450517,1.03192199,181.86,181.74,23.776884]
[1734684450688,1.03192199,181.86,181.82,20.0]
[1734684450886,41.80834459,181.9,181.87,23.776884]
[1734684451206,41.80834459,181.88,181.8,23.776884]
[1734684451516,1.03132876,181.87,181.83,20.0]
[1734684451811,1.03122458,181.89,181.88,43.776884]
[1734684451983,41.80834459,181.99,181.88,85.58522859]
[1734684452198,1.03065835,181.98,181.96,23.776884]
[1734684452401,1.03046679,182.02,181.96,65.58522859]
[1734684452606,1.03046679,182.02,181.9,0.82437343]
[1734684452607,41.80834459,182.04,182.0,23.776884]
[1734684452843,1.03039301,182.03,182.02,20.0]
[1734684453056,1.03019491,182.14,182.06,20.0]
[1734684453202,1.03019491,182.14,181.91,12.6851]
[1734684453203,1.03019491,182.14,182.13,85.58522859]
[1734684453402,41.80834459,182.28,182.22,23.776884]
[1734684453628,1.02916343,182.27,182.26,20.0]
[1734684453817,7.66227459,182.42,182.25,61.80834459]
[1734684453818,1.0288074,182.33,182.25,61.80834459]
[1734684454143,41.80834459,182.4,182.34,23.776884]
[1734684454348,1.02839432,182.39,182.38,20.0]
[1734684454517,1.02823217,182.45,182.4,20.0]
[1734684454718,1.02823217,182.45,182.41,23.776884]
[1734684454935,1.02791348,182.49,182.45,43.776884]
[1734684455307,49.62293188,182.61,182.34,41.80834459]
[1734684455308,41.80834459,182.48,182.4,41.80834459]
[1734684455512,41.80834459,182.44,182.36,61.80834459]
[1734684455712,1.02819356,182.43,182.37,23.776884]
[1734684455912,41.80834459,182.38,182.3,41.80834459]
[1734684456143,1.02852909,182.37,182.21,0.82282327]
[1734684456432,41.80834459,182.32,182.22,41.80834459]
[1734684456641,41.80834459,182.23,182.01,12.1854]
[1734684456829,1.02952482,182.22,182.04,13.7332]
[1734684457148,41.80834459,182.34,182.09,3.27635717]
[1734684457149,1.02917735,182.29,182.09,3.27635717]
[1734684458021,1.02917735,182.29,182.13,41.80834459]
[1734684458022,41.80834459,182.21,182.13,41.80834459]
[1734684458224,1.02936842,182.2,182.13,41.80834459]
[1734684458842,41.80834459,182.28,182.19,41.80834459]
[1734684459143,41.80834459,182.26,182.17,41.80834459]
[1734684459463,1.02903996,182.25,182.19,41.80834459]
[1734684459680,41.80834459,182.3,182.26,23.776884]
[1734684459982,41.80834459,182.3,182.25,20.0]
[1734684459983,1.02881219,182.29,182.25,20.0]
[1734684460185,1.02881219,182.29,182.26,23.776884]
[1734684460662,41.80834459,182.36,182.29,23.776884]
[1734684460841,1.02846035,182.35,182.29,23.776884]
[1734684461050,1.02846035,182.35,182.3,20.0]
[1734684461374,41.80834459,182.32,182.26,43.776884]
[1734684461558,1.02861342,182.31,182.26,43.776884]
[1734684461745,41.80834459,182.3,182.21,41.80834459]
[1734684461947,41.80834459,182.34,182.26,43.776884]
[1734684461948,1.02884422,182.33,182.26,43.776884]
[1734684462382,3.30910012,182.44,182.26,43.776884]
[1734684462383,41.80834459,182.36,182.31,20.0]
[1734684462677,42.83670049,182.42,182.34,23.776884]
[1734684462852,41.80834459,182.38,182.29,41.80834459]
[1734684463050,41.80834459,182.4,182.33,23.776884]
[1734684463286,1.02846033,182.42,182.33,23.776884]
[1734684463287,1.02821702,182.39,182.33,65.58522859]
[1734684463460,41.80834459,182.44,182.39,20.0]
[1734684463660,1.02802057,182.51,182.37,41.80834459]
[1734684463661,41.80834459,182.46,182.4,43.776884]
[1734684463883,41.80834459,182.52,182.4,43.776884]
[1734684463884,1.02787379,182.45,182.4,43.776884]
[1734684464269,1.02792362,182.47,182.42,23.776884]
[1734684464584,1.02773223,182.49,182.42,23.776884]
[1734684464747,1.02773223,182.49,182.46,23.776884]
[1734684465080,1.02767437,182.51,182.46,23.776884]
[1734684465447,1.02748274,182.53,182.48,23.776884]
[1734684465647,1.02733985,182.55,182.5,23.776884]
[1734684465857,1.02724288,182.54,182.48,23.776884]
[1734684466087,1.02740274,182.53,182.47,41.80834459]
[1734684466288,41.96065729,182.61,182.48,20.0]
[1734684466289,41.80834459,182.54,182.48,20.0]
[1734684466574,41.80834459,182.52,182.46,20.0]
[1734684466777,41.80834459,182.48,182.39,41.80834459]
[1734684467073,1.02805539,182.47,182.3,3.30991192]
[1734684467374,41.80834459,182.36,182.27,41.80834459]
[1734684467581,1.02850699,182.35,182.29,41.80834459]
[1734684467754,1.02833452,182.37,182.31,41.80834459]
[1734684467953,1.02825743,182.36,182.29,41.80834459]
[1734684468299,42.83660202,182.36,182.27,41.80834459]
[1734684468570,1.02825743,182.36,182.31,41.80834459]
[1734684468790,1.02825743,182.36,182.27,41.80834459]
[1734684468791,42.83660202,182.36,182.27,41.80834459]
[1734684469091,41.80834459,182.29,182.19,41.80834459]
[1734684469246,41.80834459,182.24,182.15,41.80834459]
[1734684469446,41.80834459,182.22,182.1,8.0894]
[1734684469650,41.80834459,182.18,182.09,41.80834459]
[1734684469875,1.02943964,182.17,182.16,41.80834459]
[1734684470077,41.80834459,182.26,182.16,41.80834459]
[1734684470276,41.80834459,182.24,182.16,41.80834459]
[1734684470463,41.80834459,182.22,182.12,41.80834459]
[1734684470662,41.80834459,182.2,182.1,41.80834459]
[1734684470881,1.02950291,182.24,182.11,0.82360233]
[1734684471084,1.02910265,182.3,182.11,0.82360233]
[1734684471282,1.02910265,182.3,182.12,0.12549]
[1734684471475,1.02872429,182.36,182.14,0.12549]
[1734684471689,1.02872429,182.36,182.15,0.82288723]
[1734684472085,1.02872429,182.36,182.2,23.776884]
[1734684472295,41.80834459,182.31,182.22,41.80834459]
[1734684472596,41.80834459,182.31,182.16,41.80834459]
[1734684472597,41.80834459,182.23,182.14,45.07532889]
[1734684472803,41.80834459,182.23,182.14,41.80834459]
[1734684473093,41.80834459,182.25,182.16,41.80834459]
[1734684473391,41.80834459,182.34,182.13,3.31342963]
[1734684473392,41.80834459,182.21,182.13,3.31342963]
[1734684473593,1.02930886,182.2,182.16,41.80834459]
[1734684473791,41.80834459,182.27,182.18,41.80834459]
[1734684473995,1.02890125,182.26,182.2,41.80834459]
[1734684474306,1.02886786,182.28,182.2,41.80834459]
[1734684474628,1.02886786,182.28,182.21,23.776884]
[1734684474778,41.80834459,182.27,182.17,41.80834459]
[1734684474967,1.02897993,182.26,182.18,23.776884]
[1734684475405,42.83732452,182.26,182.17,41.80834459]
[1734684475779,1.02897993,182.26,182.19,41.80834459]
[1734684476105,1.02888287,182.27,182.19,41.80834459]
[1734684476397,1.02886725,182.27,182.21,41.80834459]
[1734684476576,1.02886725,182.27,182.19,41.80834459]
[1734684476772,1.02886725,182.27,182.2,23.776884]
[1734684476998,41.80834459,182.24,182.2,23.776884]
[1734684477193,41.80834459,182.28,182.2,23.776884]
[1734684477399,41.80834459,182.3,182.22,23.776884]
[1734684477580,1.02883984,182.29,182.22,23.776884]
[1734684478075,41.80834459,182.28,182.22,23.776884]
[1734684478276,41.80834459,182.24,182.15,41.80834459]
[1734684478490,1.02911644,182.23,182.17,41.80834459]
[1734684478817,41.80834459,182.34,182.17,41.80834459]
[1734684478818,41.80834459,182.24,182.17,41.80834459]
[1734684478993,1.02910147,182.23,182.17,41.80834459]
[1734684479187,1.02910147,182.25,182.17,41.80834459]
[1734684479389,41.80834459,182.34,182.19,41.80834459]
[1734684479390,41.80834459,182.28,182.19,41.80834459]
[1734684479607,41.80834459,182.24,182.17,41.80834459]
[1734684479812,1.02910141,182.23,182.17,41.80834459]
[1734684480215,1.02910141,182.23,182.16,20.0]
[1734684480513,41.80834459,182.26,182.17,41.80834459]
[1734684480718,1.02910141,182.33,182.22,41.80834459]
[1734684480719,41.80834459,182.3,182.22,41.80834459]
[1734684481007,41.80834459,182.28,182.16,20.0]
[1734684481212,41.80834459,182.25,182.16,61.80834459]
[1734684481418,41.80834459,182.19,182.1,41.80834459]
[1734684481588,41.80834459,182.15,182.08,41.80834459]
[1734684481790,41.80834459,182.11,182.02,41.80834459]
[1734684482002,1.02966386,182.1,182.02,41.80834459]
[1734684482414,41.80834459,182.15,182.06,41.80834459]
[1734684482618,41.80834459,182.21,182.12,41.80834459]
[1734684482799,1.02933192,182.2,182.14,41.80834459]
[1734684483123,41.80834459,182.21,182.12,41.80834459]
[1734684483284,1.02928294,182.24,182.16,23.776884]
[1734684483490,41.80834459,182.23,182.16,23.776884]
[1734684483704,41.80834459,182.25,182.16,65.58522859]
[1734684484014,1.02904152,182.24,182.2,23.776884]
[1734684484194,41.80834459,182.27,182.2,23.776884]
[1734684484507,41.80834459,182.25,182.19,23.776884]
[1734684484711,41.80834459,182.21,182.12,41.80834459]
[1734684484912,41.80834459,182.19,182.1,41.80834459]
[1734684485123,41.80834459,182.13,182.05,41.80834459]
[1734684485323,41.80834459,182.15,182.07,41.80834459]
[1734684485619,41.80834459,182.19,182.11,41.80834459]
[1734684485824,1.02931052,182.18,182.13,41.80834459]
[1734684486116,1.02933239,182.2,182.11,41.80834459]
[1734684486302,41.80834459,182.19,182.11,41.80834459]
[1734684486504,1.02938609,182.18,182.11,41.80834459]
[1734684486711,1.02927281,182.2,182.11,41.80834459]
[1734684487106,1.02932722,182.24,182.17,41.80834459]
[1734684487307,41.80834459,182.27,182.17,41.80834459]
[1734684487495,1.02894953,182.26,182.17,41.80834459]
[1734684487693,41.80834459,182.27,182.19,41.80834459]
[1734684487898,41.80834459,182.27,182.2,23.776884]
[1734684488100,41.80834459,182.29,182.22,23.776884]
[1734684488303,41.80834459,182.31,182.24,23.776884]
[1734684488513,41.80834459,182.33,182.28,23.776884]
[1734684488705,41.80834459,182.35,182.28,23.776884]
[1734684489018,41.80834459,182.29,182.24,23.776884]
[1734684489224,41.80834459,182.25,182.18,23.776884]
[1734684489417,41.80834459,182.23,182.18,20.0]
[1734684489650,41.80834459,182.27,182.2,20.0]
[1734684489810,41.80834459,182.25,182.18,20.0]
[1734684490007,1.02901479,182.24,182.2,20.0]
[1734684490314,41.80834459,182.25,182.17,41.80834459]
[1734684490698,41.80834459,182.25,182.14,0.8231859]
[1734684490699,41.80834459,182.29,182.21,23.776884]
[1734684490899,41.80834459,182.27,182.21,23.776884]
[1734684491096,41.80834459,182.25,182.15,41.80834459]
[1734684491296,41.80834459,182.21,182.13,41.80834459]
[1734684491526,41.80834459,182.21,182.0,4.3]
[1734684491527,1.02929693,182.2,182.11,41.80834459]
[1734684491844,1.02929676,182.2,182.13,41.80834459]
[1734684492149,41.80834459,182.19,182.09,41.80834459]
[1734684492303,1.02951973,182.18,182.09,41.80834459]
[1734684492627,41.80834459,182.17,182.09,41.80834459]
[1734684492837,1.02956467,182.16,182.09,41.80834459]